[Event "Titled Tuesday Blitz November 22 Early 2022"]
[White "Storey, Charles H"]
[Black "Orlov, Georgi"]
[WhiteFideId "406686"]
[BlackFideId "2011271"]
[WhiteElo "2252"]
[BlackElo "2540"]
[Result "1/2-1/2"]
[Round "11"]
[TimeControl "180+1"]
[Date "2022.11.23"]
[WhiteClock "0:00:14"]
[BlackClock "0:00:05"]

1. c4 {[%clk 0:03:00]}  e5 {[%clk 0:02:59]} 2. g3 {[%clk 0:03:00]}  Nc6 {[%clk 0:02:59]} 3. Bg2 {[%clk 0:03:00]}  f5 {[%clk 0:02:59]} 4. d3 {[%clk 0:02:58]}  Nf6 {[%clk 0:02:59]} 5. Nc3 {[%clk 0:02:58]}  Bb4 {[%clk 0:02:58]} 6. Bd2 {[%clk 0:02:53]}  O-O {[%clk 0:02:56]} 7. a3 {[%clk 0:02:50]}  Bxc3 {[%clk 0:02:55]} 8. Bxc3 {[%clk 0:02:50]}  d6 {[%clk 0:02:53]} 9. e3 {[%clk 0:02:47]}  f4 {[%clk 0:02:52]} 10. exf4 {[%clk 0:02:42]}  exf4 {[%clk 0:02:52]} 11. Ne2 {[%clk 0:02:42]}  fxg3 {[%clk 0:02:29]} 12. hxg3 {[%clk 0:02:41]}  Ng4 {[%clk 0:02:28]} 13. Nf4 {[%clk 0:02:28]}  Qe8+ {[%clk 0:02:21]} 14. Kf1 {[%clk 0:02:20]}  Bf5 {[%clk 0:02:14]} 15. Bd5+ {[%clk 0:02:17]}  Kh8 {[%clk 0:02:13]} 16. Rh4 {[%clk 0:02:06]}  Nge5 {[%clk 0:01:40]} 17. Qd2 {[%clk 0:01:36]}  g5 {[%clk 0:01:36]} 18. Rh2 {[%clk 0:01:18]}  gxf4 {[%clk 0:01:22]} 19. gxf4 {[%clk 0:01:17]}  Qg6 {[%clk 0:01:15]} 20. Rd1 {[%clk 0:01:09]}  Rae8 {[%clk 0:00:46]} 21. Bxc6 {[%clk 0:00:57]}  bxc6 {[%clk 0:00:45]} 22. fxe5 {[%clk 0:00:58]}  dxe5 {[%clk 0:00:44]} 23. Qh6 {[%clk 0:00:55]}  Qf7 {[%clk 0:00:33]} 24. Ke2 {[%clk 0:00:39]}  Bg6 {[%clk 0:00:31]} 25. Qe3 {[%clk 0:00:36]}  Kg8 {[%clk 0:00:30]} 26. Rg1 {[%clk 0:00:28]}  e4 {[%clk 0:00:20]} 27. d4 {[%clk 0:00:27]}  Qxc4+ {[%clk 0:00:19]} 28. Kd2 {[%clk 0:00:28]}  Qd3+ {[%clk 0:00:19]} 29. Qxd3 {[%clk 0:00:27]}  exd3 {[%clk 0:00:19]} 30. d5 {[%clk 0:00:18]}  Re2+ {[%clk 0:00:19]} 31. Kd1 {[%clk 0:00:18]}  cxd5 {[%clk 0:00:18]} 32. Rh3 {[%clk 0:00:16]}  Rfxf2 {[%clk 0:00:17]} 33. Rxd3 {[%clk 0:00:16]}  c6 {[%clk 0:00:11]} 34. Rf3 {[%clk 0:00:14]}  Rxf3 {[%clk 0:00:11]} 35. Kxe2 {[%clk 0:00:14]}  Rh3 {[%clk 0:00:11]} 36. Rg2 {[%clk 0:00:11]}  Kf7 {[%clk 0:00:10]} 37. Bd4 {[%clk 0:00:10]}  a5 {[%clk 0:00:08]} 38. Bb6 {[%clk 0:00:09]}  Bd3+ {[%clk 0:00:08]} 39. Kd2 {[%clk 0:00:09]}  a4 {[%clk 0:00:07]} 40. Bd4 {[%clk 0:00:09]}  Bg6 {[%clk 0:00:05]} 41. Rf2+ {[%clk 0:00:08]}  Ke7 {[%clk 0:00:04]} 42. Bc5+ {[%clk 0:00:09]}  Ke6 {[%clk 0:00:05]} 43. Re2+ {[%clk 0:00:09]}  Be4 {[%clk 0:00:05]} 44. Re3 {[%clk 0:00:08]}  Rh2+ {[%clk 0:00:05]} 45. Kc3 {[%clk 0:00:08]}  Rc2+ {[%clk 0:00:05]} 46. Kb4 {[%clk 0:00:08]}  Rxb2+ {[%clk 0:00:06]} 47. Kxa4 {[%clk 0:00:08]}  Kf5 {[%clk 0:00:04]} 48. Rh3 {[%clk 0:00:09]}  Bc2+ {[%clk 0:00:04]} 49. Ka5 {[%clk 0:00:08]}  Rb5+ {[%clk 0:00:04]} 50. Ka6 {[%clk 0:00:06]}  Rxc5 {[%clk 0:00:05]} 51. Kb6 {[%clk 0:00:07]}  Ke4 {[%clk 0:00:05]} 52. Kxc5 {[%clk 0:00:06]}  Kf4 {[%clk 0:00:02]} 53. a4 {[%clk 0:00:05]}  Bxa4 {[%clk 0:00:02]} 54. Rxh7 {[%clk 0:00:05]}  Bb5 {[%clk 0:00:01]} 55. Rh4+ {[%clk 0:00:05]}  Ke5 {[%clk 0:00:01]} 56. Rg4 {[%clk 0:00:05]}  Kf5 {[%clk 0:00:01]} 57. Rh4 {[%clk 0:00:05]}  Ke5 {[%clk 0:00:02]} 58. Rb4 {[%clk 0:00:06]}  Ke6 {[%clk 0:00:02]} 59. Rb1 {[%clk 0:00:06]}  Ke5 {[%clk 0:00:03]} 60. Re1+ {[%clk 0:00:07]}  Kf4 {[%clk 0:00:02]} 61. Kd4 {[%clk 0:00:08]}  Kf3 {[%clk 0:00:03]} 62. Re8 {[%clk 0:00:09]}  Kf2 {[%clk 0:00:03]} 63. Rf8+ {[%clk 0:00:09]}  Kg3 {[%clk 0:00:03]} 64. Ke5 {[%clk 0:00:09]}  Kg4 {[%clk 0:00:04]} 65. Rg8+ {[%clk 0:00:10]}  Kf3 {[%clk 0:00:03]} 66. Kd4 {[%clk 0:00:10]}  Ke2 {[%clk 0:00:03]} 67. Ra8 {[%clk 0:00:09]}  Kf3 {[%clk 0:00:02]} 68. Ra3+ {[%clk 0:00:09]}  Kf4 {[%clk 0:00:03]} 69. Rh3 {[%clk 0:00:09]}  Kg4 {[%clk 0:00:03]} 70. Rh7 {[%clk 0:00:09]}  Kf4 {[%clk 0:00:03]} 71. Rf7+ {[%clk 0:00:09]}  Kg5 {[%clk 0:00:03]} 72. Ke5 {[%clk 0:00:09]}  Kg4 {[%clk 0:00:03]} 73. Rf4+ {[%clk 0:00:10]}  Kg3 {[%clk 0:00:03]} 74. Rb4 {[%clk 0:00:10]}  Kf3 {[%clk 0:00:04]} 75. Kd4 {[%clk 0:00:11]}  Ke2 {[%clk 0:00:02]} 76. Rb2+ {[%clk 0:00:11]}  Kf3 {[%clk 0:00:03]} 77. Rb3+ {[%clk 0:00:11]}  Ke2 {[%clk 0:00:03]} 78. Rb2+ {[%clk 0:00:12]}  Kf3 {[%clk 0:00:03]} 79. Rb4 {[%clk 0:00:12]}  Kf4 {[%clk 0:00:03]} 80. Kc5+ {[%clk 0:00:11]}  Ke5 {[%clk 0:00:03]} 81. Rh4 {[%clk 0:00:12]}  Kf5 {[%clk 0:00:02]} 82. Rh5+ {[%clk 0:00:12]}  Ke4 {[%clk 0:00:03]} 83. Rh8 {[%clk 0:00:13]}  Kd3 {[%clk 0:00:03]} 84. Re8 {[%clk 0:00:13]}  Kc3 {[%clk 0:00:02]} 85. Rd8 {[%clk 0:00:13]}  Kd3 {[%clk 0:00:01]} 86. Rh8 {[%clk 0:00:13]}  Kc3 {[%clk 0:00:01]} 87. Rh3+ {[%clk 0:00:14]}  Kd2 {[%clk 0:00:01]} 88. Kd4 {[%clk 0:00:15]}  Ke2 {[%clk 0:00:02]} 89. Rh2+ {[%clk 0:00:15]}  Kf3 {[%clk 0:00:02]} 90. Rb2 {[%clk 0:00:15]}  Kf4 {[%clk 0:00:02]} 91. Kc5 {[%clk 0:00:15]}  Ke5 {[%clk 0:00:03]} 92. Rh2 {[%clk 0:00:15]}  Ke4 {[%clk 0:00:03]} 93. Rh8 {[%clk 0:00:15]}  Ke3 {[%clk 0:00:03]} 94. Re8+ {[%clk 0:00:16]}  Kd3 {[%clk 0:00:03]} 95. Re7 {[%clk 0:00:16]}  Kd2 {[%clk 0:00:03]} 96. Kd4 {[%clk 0:00:15]}  Kc2 {[%clk 0:00:04]} 97. Rh7 {[%clk 0:00:15]}  Kb3 {[%clk 0:00:04]} 98. Rh2 {[%clk 0:00:16]}  Kb4 {[%clk 0:00:04]} 99. Rb2+ {[%clk 0:00:15]}  Ka3 {[%clk 0:00:04]} 100. Rb1 {[%clk 0:00:16]}  Ka2 {[%clk 0:00:04]} 101. Rc1 {[%clk 0:00:15]}  Kb2 {[%clk 0:00:04]} 102. Rh1 {[%clk 0:00:15]}  Kb3 {[%clk 0:00:05]} 103. Rh3+ {[%clk 0:00:14]}  Kb4 {[%clk 0:00:05]} 104. Rh4 {[%clk 0:00:14]} 1/2-1/2


[Site "https://www.chess.com"]

[Event "Titled Tuesday Blitz November 22 Early 2022"]
[White "Stribuk, Artiom"]
[Black "Piesik, Piotr"]
[WhiteFideId "13515659"]
[BlackFideId "1136194"]
[WhiteElo "2371"]
[BlackElo "2316"]
[Result "1-0"]
[Round "11"]
[TimeControl "180+1"]
[Date "2022.11.22"]
[WhiteClock "0:00:04"]
[BlackClock "0:00:01"]

1. d4 {[%clk 0:02:57]}  c5 {[%clk 0:02:59]} 2. d5 {[%clk 0:02:56]}  e5 {[%clk 0:02:59]} 3. e4 {[%clk 0:02:56]}  d6 {[%clk 0:03:00]} 4. Bb5+ {[%clk 0:02:56]}  Nd7 {[%clk 0:03:00]} 5. a4 {[%clk 0:02:57]}  Be7 {[%clk 0:03:00]} 6. c3 {[%clk 0:02:56]}  Bg5 {[%clk 0:02:59]} 7. Nd2 {[%clk 0:02:56]}  Bxd2+ {[%clk 0:02:58]} 8. Bxd2 {[%clk 0:02:55]}  Nf6 {[%clk 0:02:59]} 9. Bd3 {[%clk 0:02:47]}  c4 {[%clk 0:02:56]} 10. Bc2 {[%clk 0:02:43]}  O-O {[%clk 0:02:51]} 11. Ne2 {[%clk 0:02:35]}  Nc5 {[%clk 0:02:50]} 12. Ng3 {[%clk 0:02:35]}  b6 {[%clk 0:02:39]} 13. O-O {[%clk 0:02:33]}  Ba6 {[%clk 0:02:38]} 14. f4 {[%clk 0:02:23]}  exf4 {[%clk 0:02:38]} 15. Bxf4 {[%clk 0:02:24]}  Ne8 {[%clk 0:02:26]} 16. e5 {[%clk 0:02:18]}  dxe5 {[%clk 0:02:26]} 17. Bxe5 {[%clk 0:02:19]}  Nd3 {[%clk 0:02:20]} 18. Bxd3 {[%clk 0:01:44]}  cxd3 {[%clk 0:02:21]} 19. Nf5 {[%clk 0:01:40]}  f6 {[%clk 0:02:20]} 20. Bd4 {[%clk 0:01:35]}  Nd6 {[%clk 0:02:12]} 21. Qg4 {[%clk 0:01:13]}  Nxf5 {[%clk 0:02:11]} 22. Qxf5 {[%clk 0:01:14]}  Re8 {[%clk 0:02:11]} 23. b3 {[%clk 0:01:10]}  d2 {[%clk 0:01:59]} 24. c4 {[%clk 0:01:08]}  Re2 {[%clk 0:01:46]} 25. Qd3 {[%clk 0:01:06]}  Qe7 {[%clk 0:01:42]} 26. Rad1 {[%clk 0:01:06]}  Re8 {[%clk 0:01:34]} 27. Rxd2 {[%clk 0:01:02]}  Re1 {[%clk 0:01:31]} 28. h3 {[%clk 0:00:49]}  Bc8 {[%clk 0:01:29]} 29. Rf2 {[%clk 0:00:37]}  h5 {[%clk 0:01:20]} 30. Qg3 {[%clk 0:00:32]}  Rxf1+ {[%clk 0:01:17]} 31. Rxf1 {[%clk 0:00:32]}  Kh8 {[%clk 0:01:06]} 32. Qg6 {[%clk 0:00:26]}  Qe4 {[%clk 0:00:40]} 33. Qxh5+ {[%clk 0:00:21]}  Kg8 {[%clk 0:00:39]} 34. Kh2 {[%clk 0:00:18]}  Bd7 {[%clk 0:00:37]} 35. Ba1 {[%clk 0:00:14]}  a6 {[%clk 0:00:35]} 36. Rf3 {[%clk 0:00:13]}  Rf8 {[%clk 0:00:21]} 37. Rg3 {[%clk 0:00:12]}  Bf5 {[%clk 0:00:17]} 38. Qh6 {[%clk 0:00:10]}  Rf7 {[%clk 0:00:16]} 39. Bxf6 {[%clk 0:00:09]}  Kf8 {[%clk 0:00:08]} 40. Rxg7 {[%clk 0:00:07]}  Rxg7 {[%clk 0:00:08]} 41. Qxg7+ {[%clk 0:00:08]}  Ke8 {[%clk 0:00:09]} 42. Qg3 {[%clk 0:00:07]}  Kd7 {[%clk 0:00:07]} 43. Bg5 {[%clk 0:00:07]}  b5 {[%clk 0:00:06]} 44. axb5 {[%clk 0:00:08]}  axb5 {[%clk 0:00:06]} 45. Qc3 {[%clk 0:00:08]}  bxc4 {[%clk 0:00:06]} 46. bxc4 {[%clk 0:00:09]}  Bg6 {[%clk 0:00:05]} 47. Qg7+ {[%clk 0:00:06]}  Kd6 {[%clk 0:00:05]} 48. Qf6+ {[%clk 0:00:05]}  Kc5 {[%clk 0:00:05]} 49. d6 {[%clk 0:00:06]}  Bf5 {[%clk 0:00:04]} 50. Qe7 {[%clk 0:00:03]}  Be6 {[%clk 0:00:03]} 51. d7+ {[%clk 0:00:03]}  Kxc4 {[%clk 0:00:03]} 52. d8=Q {[%clk 0:00:04]}  Qe5+ {[%clk 0:00:03]} 53. Kg1 {[%clk 0:00:03]}  Qe1+ {[%clk 0:00:03]} 54. Kh2 {[%clk 0:00:03]}  Qe5+ {[%clk 0:00:04]} 55. Bf4 {[%clk 0:00:03]}  Qxf4+ {[%clk 0:00:04]} 56. Kg1 {[%clk 0:00:04]}  Qe3+ {[%clk 0:00:04]} 57. Kf1 {[%clk 0:00:04]}  Qc1+ {[%clk 0:00:04]} 58. Ke2 {[%clk 0:00:04]}  Qc2+ {[%clk 0:00:01]} 59. Ke3 {[%clk 0:00:04]} 1-0


[Site "https://www.chess.com"]

[Event "Titled Tuesday Blitz November 22 Early 2022"]
[White "Timofeev, Artyom"]
[Black "Goryachkina, Aleksandra"]
[WhiteFideId "4140419"]
[BlackFideId "4147103"]
[WhiteElo "2586"]
[BlackElo "2484"]
[Result "1-0"]
[Round "11"]
[TimeControl "180+1"]
[Date "2022.11.22"]
[WhiteClock "0:00:33"]
[BlackClock "0:00:02"]

1. d4 {[%clk 0:03:00]}  Nf6 {[%clk 0:02:59]} 2. Bf4 {[%clk 0:03:00]}  d5 {[%clk 0:02:58]} 3. Nc3 {[%clk 0:03:00]}  c5 {[%clk 0:02:49]} 4. e3 {[%clk 0:02:59]}  cxd4 {[%clk 0:02:45]} 5. exd4 {[%clk 0:02:59]}  a6 {[%clk 0:02:43]} 6. Nf3 {[%clk 0:02:59]}  Nc6 {[%clk 0:02:42]} 7. Ne5 {[%clk 0:02:59]}  e6 {[%clk 0:02:41]} 8. Nxc6 {[%clk 0:02:43]}  bxc6 {[%clk 0:02:41]} 9. Na4 {[%clk 0:02:44]}  Bd6 {[%clk 0:02:31]} 10. Bxd6 {[%clk 0:02:41]}  Qxd6 {[%clk 0:02:31]} 11. Be2 {[%clk 0:02:41]}  O-O {[%clk 0:02:29]} 12. O-O {[%clk 0:02:41]}  e5 {[%clk 0:02:23]} 13. dxe5 {[%clk 0:02:40]}  Qxe5 {[%clk 0:02:23]} 14. Re1 {[%clk 0:02:39]}  Qf4 {[%clk 0:01:48]} 15. Nc5 {[%clk 0:02:34]}  Bg4 {[%clk 0:01:41]} 16. g3 {[%clk 0:02:26]}  Bxe2 {[%clk 0:01:22]} 17. gxf4 {[%clk 0:02:20]}  Bxd1 {[%clk 0:01:22]} 18. Raxd1 {[%clk 0:02:21]}  a5 {[%clk 0:01:19]} 19. Kg2 {[%clk 0:02:20]}  Rfe8 {[%clk 0:01:15]} 20. Kf3 {[%clk 0:02:19]}  Kf8 {[%clk 0:01:13]} 21. Re5 {[%clk 0:02:18]}  a4 {[%clk 0:00:34]} 22. Rd3 {[%clk 0:02:15]}  Reb8 {[%clk 0:00:27]} 23. b3 {[%clk 0:01:56]}  axb3 {[%clk 0:00:27]} 24. axb3 {[%clk 0:01:57]}  Rb5 {[%clk 0:00:22]} 25. Na4 {[%clk 0:01:34]}  Nd7 {[%clk 0:00:12]} 26. Ree3 {[%clk 0:01:33]}  Nb6 {[%clk 0:00:11]} 27. Nc3 {[%clk 0:01:26]}  Rc5 {[%clk 0:00:11]} 28. Rd2 {[%clk 0:01:22]}  Re8 {[%clk 0:00:08]} 29. Ne2 {[%clk 0:01:19]}  Rxe3+ {[%clk 0:00:08]} 30. fxe3 {[%clk 0:01:19]}  Nd7 {[%clk 0:00:08]} 31. Nd4 {[%clk 0:01:06]}  Nf6 {[%clk 0:00:08]} 32. Rd1 {[%clk 0:01:06]}  Ne4 {[%clk 0:00:07]} 33. Ra1 {[%clk 0:01:05]}  Rc3 {[%clk 0:00:07]} 34. Ra8+ {[%clk 0:01:01]}  Ke7 {[%clk 0:00:06]} 35. Ra7+ {[%clk 0:01:01]}  Kf6 {[%clk 0:00:05]} 36. Ra6 {[%clk 0:01:00]}  g5 {[%clk 0:00:05]} 37. Rxc6+ {[%clk 0:00:56]}  Rxc6 {[%clk 0:00:04]} 38. Nxc6 {[%clk 0:00:57]}  gxf4 {[%clk 0:00:04]} 39. Kxf4 {[%clk 0:00:55]}  Ke6 {[%clk 0:00:04]} 40. Nd4+ {[%clk 0:00:54]}  Kd6 {[%clk 0:00:04]} 41. b4 {[%clk 0:00:53]}  Nc3 {[%clk 0:00:04]} 42. h4 {[%clk 0:00:48]}  Nd1 {[%clk 0:00:03]} 43. h5 {[%clk 0:00:47]}  Nc3 {[%clk 0:00:03]} 44. h6 {[%clk 0:00:46]}  Nd1 {[%clk 0:00:03]} 45. Nf3 {[%clk 0:00:43]}  Nc3 {[%clk 0:00:03]} 46. Ng5 {[%clk 0:00:42]}  f6 {[%clk 0:00:03]} 47. Nxh7 {[%clk 0:00:41]}  Ke7 {[%clk 0:00:03]} 48. Kf5 {[%clk 0:00:41]}  Ne4 {[%clk 0:00:04]} 49. Nxf6 {[%clk 0:00:35]}  Nxf6 {[%clk 0:00:04]} 50. b5 {[%clk 0:00:36]}  Kf7 {[%clk 0:00:03]} 51. b6 {[%clk 0:00:34]}  Nd7 {[%clk 0:00:02]} 52. b7 {[%clk 0:00:33]}  Nb8 {[%clk 0:00:02]} 53. Ke5 {[%clk 0:00:33]} 1-0


[Site "https://www.chess.com"]

[Event "Titled Tuesday Blitz November 22 Early 2022"]
[White "Unat, Can Haktan"]
[Black "Principe, Gerson"]
[WhiteFideId "6398073"]
[BlackFideId "3804550"]
[WhiteElo "2146"]
[BlackElo "2280"]
[Result "1/2-1/2"]
[Round "11"]
[TimeControl "180+1"]
[Date "2022.11.22"]
[WhiteClock "0:00:13"]
[BlackClock "0:00:04"]

1. e4 {[%clk 0:03:00]}  c6 {[%clk 0:02:55]} 2. Nc3 {[%clk 0:02:52]}  d5 {[%clk 0:02:54]} 3. Nf3 {[%clk 0:02:53]}  Bg4 {[%clk 0:02:49]} 4. h3 {[%clk 0:02:47]}  Bxf3 {[%clk 0:02:48]} 5. Qxf3 {[%clk 0:02:48]}  e6 {[%clk 0:02:45]} 6. d4 {[%clk 0:02:43]}  dxe4 {[%clk 0:02:29]} 7. Qe3 {[%clk 0:02:40]}  Nf6 {[%clk 0:02:28]} 8. Nxe4 {[%clk 0:02:40]}  Nxe4 {[%clk 0:02:28]} 9. Qxe4 {[%clk 0:02:41]}  Nd7 {[%clk 0:02:28]} 10. Be3 {[%clk 0:02:41]}  Nf6 {[%clk 0:02:29]} 11. Qf3 {[%clk 0:02:42]}  Qd5 {[%clk 0:02:27]} 12. Be2 {[%clk 0:02:41]}  Qxf3 {[%clk 0:02:26]} 13. Bxf3 {[%clk 0:02:42]}  Be7 {[%clk 0:02:26]} 14. O-O-O {[%clk 0:02:43]}  O-O {[%clk 0:02:25]} 15. c3 {[%clk 0:02:44]}  Rfd8 {[%clk 0:02:25]} 16. Rhe1 {[%clk 0:02:44]}  h6 {[%clk 0:02:23]} 17. Kc2 {[%clk 0:02:44]}  Kf8 {[%clk 0:02:23]} 18. g4 {[%clk 0:02:44]}  Nd5 {[%clk 0:02:22]} 19. Bxd5 {[%clk 0:02:44]}  cxd5 {[%clk 0:02:21]} 20. f4 {[%clk 0:02:45]}  Rac8 {[%clk 0:02:07]} 21. Rf1 {[%clk 0:02:42]}  f5 {[%clk 0:01:51]} 22. Kd3 {[%clk 0:02:37]}  Kf7 {[%clk 0:01:49]} 23. Rde1 {[%clk 0:02:35]}  Rd7 {[%clk 0:01:47]} 24. Re2 {[%clk 0:02:36]}  a6 {[%clk 0:01:37]} 25. Rfe1 {[%clk 0:02:33]}  Rc6 {[%clk 0:01:33]} 26. Bf2 {[%clk 0:02:32]}  Bf6 {[%clk 0:01:29]} 27. Rg1 {[%clk 0:02:28]}  b5 {[%clk 0:01:26]} 28. g5 {[%clk 0:02:16]}  hxg5 {[%clk 0:01:23]} 29. fxg5 {[%clk 0:02:17]}  Bd8 {[%clk 0:01:22]} 30. g6+ {[%clk 0:02:15]}  Kg8 {[%clk 0:01:19]} 31. Rge1 {[%clk 0:02:15]}  e5 {[%clk 0:01:00]} 32. dxe5 {[%clk 0:02:12]}  Rxg6 {[%clk 0:00:59]} 33. e6 {[%clk 0:02:13]}  Re7 {[%clk 0:00:58]} 34. Bh4 {[%clk 0:02:13]}  Re8 {[%clk 0:00:58]} 35. e7 {[%clk 0:02:12]}  Bc7 {[%clk 0:00:52]} 36. Re6 {[%clk 0:02:11]}  Kf7 {[%clk 0:00:43]} 37. Rxg6 {[%clk 0:02:05]}  Kxg6 {[%clk 0:00:44]} 38. Re6+ {[%clk 0:02:05]}  Kh5 {[%clk 0:00:44]} 39. Rxa6 {[%clk 0:02:06]}  Kxh4 {[%clk 0:00:43]} 40. Re6 {[%clk 0:02:02]}  f4 {[%clk 0:00:30]} 41. Ke2 {[%clk 0:02:00]}  g5 {[%clk 0:00:15]} 42. Kf3 {[%clk 0:01:58]}  Kh5 {[%clk 0:00:15]} 43. b3 {[%clk 0:01:58]}  Ba5 {[%clk 0:00:12]} 44. b4 {[%clk 0:01:51]}  Bc7 {[%clk 0:00:12]} 45. a3 {[%clk 0:01:51]}  Bb8 {[%clk 0:00:12]} 46. Kf2 {[%clk 0:01:51]}  Ba7+ {[%clk 0:00:12]} 47. Kf3 {[%clk 0:01:52]}  d4 {[%clk 0:00:12]} 48. cxd4 {[%clk 0:01:34]}  Bxd4 {[%clk 0:00:13]} 49. Rd6 {[%clk 0:01:35]}  Bb2 {[%clk 0:00:12]} 50. Re6 {[%clk 0:01:21]}  Bxa3 {[%clk 0:00:12]} 51. Re4 {[%clk 0:01:22]}  Bb2 {[%clk 0:00:10]} 52. Re6 {[%clk 0:01:22]}  Bg7 {[%clk 0:00:10]} 53. Ke4 {[%clk 0:01:20]}  Kh4 {[%clk 0:00:09]} 54. Kf5 {[%clk 0:01:12]}  Kxh3 {[%clk 0:00:08]} 55. Kg6 {[%clk 0:01:08]}  Bf8 {[%clk 0:00:06]} 56. Kxg5 {[%clk 0:00:47]}  f3 {[%clk 0:00:04]} 57. Kf4 {[%clk 0:00:29]}  f2 {[%clk 0:00:03]} 58. Re3+ {[%clk 0:00:26]}  Kg2 {[%clk 0:00:02]} 59. Rg3+ {[%clk 0:00:25]}  Kf1 {[%clk 0:00:03]} 60. Rb3 {[%clk 0:00:14]}  Rxe7 {[%clk 0:00:02]} 61. Kf3 {[%clk 0:00:15]}  Rf7+ {[%clk 0:00:02]} 62. Kg3 {[%clk 0:00:15]}  Kg1 {[%clk 0:00:02]} 63. Kg4 {[%clk 0:00:13]}  f1=Q {[%clk 0:00:03]} 64. Rg3+ {[%clk 0:00:13]}  Qg2 {[%clk 0:00:03]} 65. Kh4 {[%clk 0:00:14]}  Rf4+ {[%clk 0:00:03]} 66. Kh5 {[%clk 0:00:13]}  Qxg3 {[%clk 0:00:04]} 1/2-1/2


[Site "https://www.chess.com"]

[Event "Titled Tuesday Blitz November 22 Early 2022"]
[White "Urazayev, Arystanbek"]
[Black "Jones, Gawain C B"]
[WhiteFideId "13709810"]
[BlackFideId "409561"]
[WhiteElo "2441"]
[BlackElo "2657"]
[Result "1-0"]
[Round "11"]
[TimeControl "180+1"]
[Date "2022.11.22"]
[WhiteClock "0:00:16"]
[BlackClock "0:00:03"]

1. d4 {[%clk 0:02:51]}  Nf6 {[%clk 0:03:00]} 2. c4 {[%clk 0:02:52]}  c5 {[%clk 0:03:00]} 3. d5 {[%clk 0:02:52]}  g6 {[%clk 0:02:58]} 4. Nc3 {[%clk 0:02:52]}  Bg7 {[%clk 0:02:58]} 5. e4 {[%clk 0:02:52]}  d6 {[%clk 0:02:59]} 6. Be2 {[%clk 0:02:53]}  O-O {[%clk 0:02:59]} 7. h4 {[%clk 0:02:54]}  e6 {[%clk 0:02:56]} 8. h5 {[%clk 0:02:54]}  exd5 {[%clk 0:02:57]} 9. exd5 {[%clk 0:02:55]}  Re8 {[%clk 0:02:57]} 10. h6 {[%clk 0:02:55]}  Bh8 {[%clk 0:02:57]} 11. Bg5 {[%clk 0:02:56]}  Qb6 {[%clk 0:02:54]} 12. b3 {[%clk 0:02:56]}  Ne4 {[%clk 0:02:54]} 13. Nxe4 {[%clk 0:02:57]}  Rxe4 {[%clk 0:02:55]} 14. Kf1 {[%clk 0:02:57]}  Nd7 {[%clk 0:02:51]} 15. Nf3 {[%clk 0:02:55]}  Ne5 {[%clk 0:02:46]} 16. Nxe5 {[%clk 0:02:53]}  Rxe5 {[%clk 0:02:44]} 17. Bf4 {[%clk 0:02:48]}  Re4 {[%clk 0:02:43]} 18. Bg3 {[%clk 0:02:42]}  Bf5 {[%clk 0:02:31]} 19. Bf3 {[%clk 0:02:30]}  Re7 {[%clk 0:02:11]} 20. Rc1 {[%clk 0:02:26]}  Rae8 {[%clk 0:02:09]} 21. Qd2 {[%clk 0:02:22]}  a5 {[%clk 0:02:07]} 22. Kg1 {[%clk 0:02:13]}  Be5 {[%clk 0:01:41]} 23. Kh2 {[%clk 0:02:05]}  Qb4 {[%clk 0:01:32]} 24. Qd1 {[%clk 0:01:27]}  Qa3 {[%clk 0:01:30]} 25. Bxe5 {[%clk 0:01:20]}  Rxe5 {[%clk 0:01:30]} 26. Qd2 {[%clk 0:01:19]}  f6 {[%clk 0:01:21]} 27. Rhe1 {[%clk 0:01:10]}  Qb4 {[%clk 0:01:20]} 28. Rxe5 {[%clk 0:01:08]}  Rxe5 {[%clk 0:01:11]} 29. Rc3 {[%clk 0:01:06]}  g5 {[%clk 0:01:01]} 30. Bh5 {[%clk 0:01:03]}  Kf8 {[%clk 0:00:44]} 31. g4 {[%clk 0:01:03]}  Be4 {[%clk 0:00:18]} 32. f4 {[%clk 0:01:02]}  gxf4 {[%clk 0:00:12]} 33. Qxf4 {[%clk 0:01:02]}  Ke7 {[%clk 0:00:11]} 34. Re3 {[%clk 0:00:51]}  Qd2+ {[%clk 0:00:10]} 35. Kg3 {[%clk 0:00:52]}  Qd4 {[%clk 0:00:06]} 36. Qf2 {[%clk 0:00:31]}  Bb1 {[%clk 0:00:05]} 37. Rxe5+ {[%clk 0:00:28]}  Qxe5+ {[%clk 0:00:06]} 38. Kh3 {[%clk 0:00:27]}  Be4 {[%clk 0:00:04]} 39. Kh4 {[%clk 0:00:18]}  Qg5+ {[%clk 0:00:03]} 40. Kh3 {[%clk 0:00:19]}  Qe5 {[%clk 0:00:03]} 41. Kh4 {[%clk 0:00:19]}  Kd7 {[%clk 0:00:03]} 42. Bf7 {[%clk 0:00:18]}  Qg5+ {[%clk 0:00:02]} 43. Kg3 {[%clk 0:00:18]}  Qxh6 {[%clk 0:00:02]} 44. Be6+ {[%clk 0:00:19]}  Ke7 {[%clk 0:00:03]} 45. Qe2 {[%clk 0:00:18]}  Qh1 {[%clk 0:00:02]} 46. Bf5 {[%clk 0:00:18]}  Qg1+ {[%clk 0:00:02]} 47. Kf4 {[%clk 0:00:18]}  Kd8 {[%clk 0:00:02]} 48. Bxe4 {[%clk 0:00:18]}  Qc1+ {[%clk 0:00:01]} 49. Kg3 {[%clk 0:00:17]}  Qh6 {[%clk 0:00:01]} 50. Bg2 {[%clk 0:00:17]}  Qg5 {[%clk 0:00:01]} 51. Qe6 {[%clk 0:00:17]}  Kc7 {[%clk 0:00:02]} 52. Qe7+ {[%clk 0:00:17]}  Kb6 {[%clk 0:00:02]} 53. Qxd6+ {[%clk 0:00:18]}  Ka7 {[%clk 0:00:03]} 54. Qxc5+ {[%clk 0:00:18]}  b6 {[%clk 0:00:03]} 55. Qc7+ {[%clk 0:00:18]}  Ka6 {[%clk 0:00:04]} 56. Qc8+ {[%clk 0:00:17]}  Ka7 {[%clk 0:00:04]} 57. Qe6 {[%clk 0:00:17]}  h5 {[%clk 0:00:04]} 58. Qe7+ {[%clk 0:00:17]}  Ka6 {[%clk 0:00:04]} 59. Qe2 {[%clk 0:00:17]}  f5 {[%clk 0:00:03]} 60. c5+ {[%clk 0:00:16]}  Ka7 {[%clk 0:00:03]} 61. d6 {[%clk 0:00:16]}  f4+ {[%clk 0:00:02]} 62. Kh2 {[%clk 0:00:15]}  hxg4 {[%clk 0:00:02]} 63. Qe7+ {[%clk 0:00:15]}  Qxe7 {[%clk 0:00:03]} 64. dxe7 {[%clk 0:00:16]} 1-0


[Site "https://www.chess.com"]

[Event "Titled Tuesday Blitz November 22 Early 2022"]
[White "Vaishali, Rameshbabu"]
[Black "Gabrielian, Artur"]
[WhiteFideId "5091756"]
[BlackFideId "4131002"]
[WhiteElo "2351"]
[BlackElo "2432"]
[Result "0-1"]
[Round "11"]
[TimeControl "180+1"]
[Date "2022.11.22"]
[WhiteClock "0:00:02"]
[BlackClock "0:01:06"]

1. e4 {[%clk 0:03:00]}  c5 {[%clk 0:02:58]} 2. Nf3 {[%clk 0:02:59]}  d6 {[%clk 0:02:59]} 3. d4 {[%clk 0:02:57]}  cxd4 {[%clk 0:02:59]} 4. Nxd4 {[%clk 0:02:58]}  Nf6 {[%clk 0:02:59]} 5. Nc3 {[%clk 0:02:58]}  Nc6 {[%clk 0:02:59]} 6. Bc4 {[%clk 0:02:52]}  Qb6 {[%clk 0:02:57]} 7. Nb3 {[%clk 0:02:46]}  e6 {[%clk 0:02:57]} 8. Bf4 {[%clk 0:02:47]}  Ne5 {[%clk 0:02:55]} 9. Be2 {[%clk 0:02:39]}  Be7 {[%clk 0:02:54]} 10. Be3 {[%clk 0:02:35]}  Qc7 {[%clk 0:02:54]} 11. f4 {[%clk 0:02:34]}  Nc6 {[%clk 0:02:47]} 12. g4 {[%clk 0:02:32]}  a6 {[%clk 0:02:40]} 13. O-O {[%clk 0:02:25]}  h6 {[%clk 0:02:33]} 14. a4 {[%clk 0:02:24]}  b6 {[%clk 0:02:28]} 15. Bf3 {[%clk 0:02:21]}  Bb7 {[%clk 0:02:27]} 16. Qe2 {[%clk 0:02:18]}  Rc8 {[%clk 0:02:23]} 17. Rad1 {[%clk 0:02:16]}  Na5 {[%clk 0:02:05]} 18. Nxa5 {[%clk 0:02:05]}  bxa5 {[%clk 0:02:05]} 19. h4 {[%clk 0:01:51]}  Qc4 {[%clk 0:02:02]} 20. Qg2 {[%clk 0:01:47]}  g5 {[%clk 0:01:56]} 21. Rd4 {[%clk 0:00:32]}  Qc7 {[%clk 0:01:46]} 22. hxg5 {[%clk 0:00:15]}  hxg5 {[%clk 0:01:45]} 23. fxg5 {[%clk 0:00:13]}  Nd7 {[%clk 0:01:44]} 24. Rd2 {[%clk 0:00:07]}  Ne5 {[%clk 0:01:43]} 25. Rdf2 {[%clk 0:00:06]}  Rg8 {[%clk 0:01:34]} 26. Qg3 {[%clk 0:00:05]}  Bxg5 {[%clk 0:01:32]} 27. Bxg5 {[%clk 0:00:05]}  Rxg5 {[%clk 0:01:33]} 28. Qf4 {[%clk 0:00:04]}  Qe7 {[%clk 0:01:29]} 29. Rh2 {[%clk 0:00:04]}  Kd7 {[%clk 0:01:18]} 30. Kf2 {[%clk 0:00:04]}  Rg6 {[%clk 0:01:16]} 31. Rh6 {[%clk 0:00:03]}  Rcg8 {[%clk 0:01:10]} 32. Rg1 {[%clk 0:00:03]}  Rxh6 {[%clk 0:01:08]} 33. Qxh6 {[%clk 0:00:03]}  Rg6 {[%clk 0:01:08]} 34. Qe3 {[%clk 0:00:02]}  Qh4+ {[%clk 0:01:05]} 35. Ke2 {[%clk 0:00:02]}  Rf6 {[%clk 0:01:06]} 0-1


[Site "https://www.chess.com"]